fUST/lending_fUST_20241018
["ID","MTS","AMOUNT","RATE_DAILY","PERIOD"]
[340442313,1729245100529,-1152.0,0.00016052,2]
[340442314,1729245100538,-3000.0,0.0001606,2]
[340442315,1729245100548,-3000.0,0.0001607,2]
[340442316,1729245100557,-3000.0,0.0001608,2]
[340442317,1729245100567,-3000.0,0.0001609,2]
[340442318,1729245100577,-3000.0,0.000161,2]
[340442319,1729245100587,-3000.0,0.0001611,2]
[340442320,1729245100597,-3000.0,0.0001612,2]
[340442321,1729245100607,-3000.0,0.0001613,2]
[340442322,1729245100618,-3000.0,0.0001614,2]
[340442323,1729245100629,-3000.0,0.0001615,2]
[340442324,1729245100638,-3000.0,0.0001616,2]
[340442325,1729245100648,-735.79,0.00016164,2]
[340442326,1729245100657,-3000.0,0.0001617,2]
[340442327,1729245100666,-3000.0,0.0001618,2]
[340442328,1729245100676,-3000.0,0.0001619,2]
[340442329,1729245100686,-3000.0,0.000162,2]
[340442330,1729245100697,-3000.0,0.0001621,2]
[340442331,1729245100709,-3000.0,0.0001622,2]
[340442332,1729245100718,-3000.0,0.0001623,2]
[340442333,1729245100728,-3000.0,0.0001624,2]
[340442334,1729245100738,-3000.0,0.0001625,2]
[340442335,1729245100747,-3000.0,0.0001626,2]
[340442336,1729245100758,-3000.0,0.0001627,2]
[340442337,1729245100767,-3000.0,0.0001628,2]
[340442338,1729245100776,-3000.0,0.0001629,2]
[340442339,1729245100785,-150.0,0.000163,2]
[340442340,1729245100794,-3000.0,0.000163,2]
[340442341,1729245100804,-3000.0,0.0001631,2]
[340442342,1729245100813,-3000.0,0.0001632,2]
[340442343,1729245100823,-3000.0,0.0001633,2]
[340442344,1729245100834,-3000.0,0.0001634,2]
[340442345,1729245100844,-3000.0,0.0001635,2]
[340442346,1729245100853,-3000.0,0.0001636,2]
[340442347,1729245100863,-3000.0,0.0001637,2]
[340442348,1729245100872,-3000.0,0.0001638,2]
[340442349,1729245100881,-3000.0,0.0001639,2]
[340442350,1729245100890,-3000.0,0.000164,2]
[340442351,1729245100898,-3000.0,0.0001641,2]
[340442352,1729245100907,-3000.0,0.0001642,2]
[340442353,1729245100916,-3000.0,0.0001643,2]
[340442354,1729245100925,-500.0,0.00016438,2]
[340442355,1729245100935,-500.0,0.00016438,2]
[340442356,1729245100944,-500.0,0.00016438,2]
[340442357,1729245100953,-500.0,0.00016438,2]
[340442358,1729245100963,-500.0,0.00016438,2]
[340442359,1729245100973,-500.0,0.00016438,2]
[340442360,1729245100982,-513.63975626,0.00016438,2]
[340442361,1729245100995,-500.0,0.00016438,2]
[340442362,1729245101004,-500.0,0.00016438,2]
[340442363,1729245101013,-2919.28,0.00016438,2]
[340442364,1729245101023,-500.0,0.00016438,2]
[340442365,1729245101033,-500.0,0.00016438,2]
[340442366,1729245101042,-500.0,0.00016438,2]
[340442367,1729245101051,-516.97739768,0.00016438,2]
[340442368,1729245101060,-511.77784286,0.00016438,2]
[340442369,1729245101071,-474.81955585,0.00016438,2]
[340442370,1729245101081,-1214.85,0.00016438,2]
[340442371,1729245101091,-896.05,0.00016438,2]
[340442372,1729245101100,-500.0,0.00016438,2]
[340442373,1729245101110,-168.58352348,0.00016438,2]
[340442374,1729245101120,-1925.95,0.00016438,2]
[340442375,1729245101129,-512.04477802,0.00016438,2]
[340442376,1729245101139,-500.0,0.00016438,2]
[340442377,1729245101149,-500.0,0.00016438,2]
[340442378,1729245101159,-1100.96,0.00016438,2]
[340442379,1729245101168,-517.73125779,0.00016438,2]
[340442380,1729245101178,-508.18374743,0.00016438,2]
[340442381,1729245101187,-516.90922909,0.00016438,2]
[340442382,1729245101196,-234.18121437,0.00016438,2]
[340442383,1729245101205,-500.0,0.00016438,2]
[340442384,1729245101215,-1112.06,0.00016438,2]
[340442385,1729245101225,-500.0,0.00016438,2]
[340442386,1729245101235,-942.61,0.00016438,2]
[340442387,1729245101246,-500.0,0.00016438,2]
[340442388,1729245101258,-694.02,0.00016438,2]
[340442389,1729245101267,-500.0,0.00016438,2]
[340442390,1729245101276,-1028.28,0.00016438,2]
[340442391,1729245101285,-500.0,0.00016438,2]
[340442392,1729245101294,-500.0,0.00016438,2]
[340442393,1729245101303,-500.0,0.00016438,2]
[340442394,1729245101312,-524.21535593,0.00016438,2]
[340442395,1729245101322,-560.75355582,0.00016438,2]
[340442396,1729245101331,-500.0,0.00016438,2]
[340442397,1729245101341,-500.0,0.00016438,2]
[340442398,1729245101350,-500.0,0.00016438,2]
[340442399,1729245101359,-500.0,0.00016438,2]
[340442400,1729245101368,-1032.9,0.00016438,2]
[340442401,1729245101378,-500.0,0.00016438,2]
[340442402,1729245101387,-500.0,0.00016438,2]
[340442403,1729245101397,-1307.02,0.00016438,2]
[340442404,1729245101406,-500.0,0.00016438,2]
[340442405,1729245101416,-500.0,0.00016438,2]
[340442406,1729245101426,-500.0,0.00016438,2]
[340442407,1729245101436,-500.0,0.00016438,2]
[340442408,1729245101445,-1007.91,0.00016438,2]
[340442409,1729245101455,-719.96,0.00016438,2]
[340442410,1729245101464,-872.66,0.00016438,2]
[340442411,1729245101473,-500.0,0.00016438,2]
[340442412,1729245101483,-500.0,0.00016438,2]
[340442413,1729245101492,-915.43,0.00016438,2]
[340442414,1729245101501,-500.0,0.00016438,2]
[340442415,1729245101511,-1054.91,0.00016438,2]
[340442416,1729245101520,-517.91934527,0.00016438,2]
[340442417,1729245101529,-510.62248958,0.00016438,2]
[340442418,1729245101539,-500.0,0.00016438,2]
[340442419,1729245101549,-467.53413234,0.00016438,2]
[340442420,1729245101558,-531.47,0.00016438,2]
[340442421,1729245101568,-500.0,0.00016438,2]
[340442422,1729245101578,-1046.71,0.00016438,2]
[340442423,1729245101587,-1013.1,0.00016438,2]
[340442424,1729245101596,-518.62201657,0.00016438,2]
[340442425,1729245101605,-500.0,0.00016438,2]
[340442426,1729245101615,-500.0,0.00016438,2]
[340442427,1729245101624,-1107.34,0.00016438,2]
[340442428,1729245101633,-1014.96,0.00016438,2]
[340442429,1729245101643,-544.86305791,0.00016438,2]
[340442430,1729245101653,-779.88,0.00016438,2]
[340442431,1729245101662,-533.11434535,0.00016438,2]
[340442432,1729245101672,-643.37635727,0.00016438,2]
[340442433,1729245101681,-675.89,0.00016438,2]
[340442434,1729245101691,-1425.42,0.00016438,2]
[340442435,1729245101701,-500.0,0.00016438,2]
[340442436,1729245101712,-500.0,0.00016438,2]
[340442437,1729245101722,-500.0,0.00016438,2]
[340442438,1729245101733,-500.0,0.00016438,2]
[340442439,1729245101742,-858.13,0.00016438,2]
[340442440,1729245101753,-533.48993321,0.00016438,2]
[340442441,1729245101762,-741.88,0.00016438,2]
[340442442,1729245101773,-500.0,0.00016438,2]
[340442443,1729245101783,-1003.38,0.00016438,2]
[340442444,1729245101792,-1103.55,0.00016438,2]
[340442445,1729245101804,-500.0,0.00016438,2]
[340442446,1729245101815,-500.0,0.00016438,2]
[340442447,1729245101829,-500.0,0.00016438,2]
[340442448,1729245101839,-500.0,0.00016438,2]
[340442449,1729245101849,-638.99,0.00016438,2]
[340442450,1729245101859,-500.0,0.00016438,2]
[340442451,1729245101868,-500.0,0.00016438,2]
[340442452,1729245101877,-620.45,0.00016438,2]
[340442453,1729245101887,-679.66,0.00016438,2]
[340442454,1729245101897,-1907.3,0.00016438,2]
[340442455,1729245101907,-372.47154472,0.00016438,2]
[340442456,1729245101916,-871.12,0.00016438,2]
[340442457,1729245101925,-1037.26,0.00016438,2]
[340442458,1729245101935,-795.76,0.00016438,2]
[340442459,1729245101945,-500.0,0.00016438,2]
[340442460,1729245101954,-500.0,0.00016438,2]
[340442461,1729245101965,-211.67590739,0.00016438,2]
[340442462,1729245101975,-1051.27,0.00016438,2]
[340442463,1729245101984,-1007.24,0.00016438,2]
[340442464,1729245101997,-1162.07,0.00016438,2]
[340442465,1729245102007,-500.0,0.00016438,2]
[340442466,1729245102017,-500.0,0.00016438,2]
[340442467,1729245102027,-500.0,0.00016438,2]
[340442468,1729245102037,-1243.95,0.00016438,2]
[340442469,1729245102047,-500.0,0.00016438,2]
[340442470,1729245102057,-518.8598859,0.00016438,2]
[340442471,1729245102067,-500.0,0.00016438,2]
[340442472,1729245102080,-500.0,0.00016438,2]
[340442473,1729245102090,-786.11,0.00016438,2]
[340442474,1729245102102,-500.0,0.00016438,2]
[340442475,1729245102113,-500.0,0.00016438,2]
[340442476,1729245102124,-500.0,0.00016438,2]
[340442477,1729245102134,-676.43,0.00016438,2]
[340442478,1729245102145,-1523.03,0.00016438,2]
[340442479,1729245102155,-1715.25,0.00016438,2]
[340442480,1729245102165,-371.60801305,0.00016438,2]
[340442481,1729245102175,-500.0,0.00016438,2]
[340442482,1729245102184,-500.0,0.00016438,2]
[340442483,1729245102193,-500.0,0.00016438,2]
[340442484,1729245102202,-500.0,0.00016438,2]
[340442485,1729245102212,-500.0,0.00016438,2]
[340442486,1729245102225,-500.0,0.00016438,2]
[340442487,1729245102235,-500.0,0.00016438,2]
[340442488,1729245102245,-500.0,0.00016438,2]
[340442489,1729245102256,-500.0,0.00016438,2]
[340442490,1729245102266,-1443.01,0.00016438,2]
[340442491,1729245102275,-500.0,0.00016438,2]
[340442492,1729245102285,-1076.09,0.00016438,2]
[340442493,1729245102295,-500.0,0.00016438,2]
[340442494,1729245102305,-962.41,0.00016438,2]
[340442495,1729245102314,-500.0,0.00016438,2]
[340442496,1729245102327,-895.35,0.00016438,2]
[340442497,1729245102338,-500.0,0.00016438,2]
[340442498,1729245102349,-500.0,0.00016438,2]
[340442499,1729245102360,-1226.14,0.00016438,2]
[340442500,1729245102370,-1037.27,0.00016438,2]
[340442501,1729245102380,-751.72,0.00016438,2]
[340442502,1729245102390,-500.0,0.00016438,2]
[340442503,1729245102400,-1070.53,0.00016438,2]
[340442504,1729245102410,-500.0,0.00016438,2]
[340442505,1729245102420,-827.18,0.00016438,2]
[340442506,1729245102429,-500.0,0.00016438,2]
[340442507,1729245102439,-500.0,0.00016438,2]
[340442508,1729245102450,-586.86,0.00016438,2]
[340442509,1729245102460,-510.39807226,0.00016438,2]
[340442510,1729245102470,-970.57,0.00016438,2]
[340442511,1729245102480,-708.3,0.00016438,2]
[340442512,1729245102490,-500.0,0.00016438,2]
[340442513,1729245102500,-189.02948573,0.00016438,2]
[340442514,1729245102510,-1460.22,0.00016438,2]
[340442515,1729245102519,-1055.65,0.00016438,2]
[340442516,1729245102530,-604.42,0.00016438,2]
[340442517,1729245102541,-500.0,0.00016438,2]
[340442518,1729245102551,-515.66334469,0.00016438,2]
[340442519,1729245102561,-551.86,0.00016438,2]
[340442520,1729245102715,-1084.78,0.00016438,2]
[340442521,1729245102726,-500.0,0.00016438,2]
[340442522,1729245102736,-513.51655246,0.00016438,2]
[340442523,1729245102745,-859.29,0.00016438,2]
[340442524,1729245102755,-500.0,0.00016438,2]
[340442525,1729245102765,-500.0,0.00016438,2]
[340442526,1729245102775,-1043.86,0.00016438,2]
[340442527,1729245102785,-500.0,0.00016438,2]
[340442528,1729245102795,-500.0,0.00016438,2]
[340442529,1729245102804,-500.0,0.00016438,2]
[340442530,1729245102813,-500.0,0.00016438,2]
[340442531,1729245102825,-781.11,0.00016438,2]
[340442532,1729245102835,-1193.67,0.00016438,2]
[340442533,1729245102844,-500.0,0.00016438,2]
[340442534,1729245102854,-500.0,0.00016438,2]
[340442535,1729245102864,-500.0,0.00016438,2]
[340442536,1729245102874,-1153.0,0.00016438,2]
[340442537,1729245102884,-964.73,0.00016438,2]
[340442538,1729245102894,-511.26775444,0.00016438,2]
[340442539,1729245102903,-818.7,0.00016438,2]
[340442540,1729245102912,-500.0,0.00016438,2]
[340442541,1729245102922,-881.33,0.00016438,2]
[340442542,1729245102931,-635.14685721,0.00016438,2]
[340442543,1729245102941,-500.0,0.00016438,2]
[340442544,1729245102951,-520.8212969,0.00016438,2]
[340442545,1729245102961,-661.9,0.00016438,2]
[340442546,1729245102971,-500.0,0.00016438,2]
[340442547,1729245102980,-500.0,0.00016438,2]
[340442548,1729245102991,-500.0,0.00016438,2]
[340442549,1729245103003,-500.0,0.00016438,2]
[340442550,1729245103012,-500.0,0.00016438,2]
[340442551,1729245103021,-500.0,0.00016438,2]
[340442552,1729245103031,-500.0,0.00016438,2]
[340442553,1729245103042,-1062.73,0.00016438,2]
[340442554,1729245103052,-372.40324018,0.00016438,2]
[340442555,1729245103061,-500.0,0.00016438,2]
[340442556,1729245103072,-1206.32,0.00016438,2]
[340442557,1729245103083,-500.0,0.00016438,2]
[340442558,1729245103093,-1395.24,0.00016438,2]
[340442559,1729245103103,-500.0,0.00016438,2]
[340442560,1729245103112,-1145.55,0.00016438,2]
[340442561,1729245103122,-500.0,0.00016438,2]
[340442562,1729245103131,-1054.58,0.00016438,2]
[340442563,1729245103141,-500.0,0.00016438,2]
[340442564,1729245103150,-500.0,0.00016438,2]
[340442565,1729245103161,-627.6073533,0.00016438,2]
[340442566,1729245103170,-522.77463084,0.00016438,2]
[340442567,1729245103180,-738.95,0.00016438,2]
[340442568,1729245103190,-1000.56,0.00016438,2]
[340442569,1729245103200,-500.0,0.00016438,2]
[340442570,1729245103209,-1096.22,0.00016438,2]
[340442571,1729245103219,-500.0,0.00016438,2]
[340442572,1729245103229,-1069.71,0.00016438,2]
[340442573,1729245103239,-1397.58,0.00016438,2]
[340442574,1729245103248,-500.0,0.00016438,2]
[340442575,1729245103258,-500.0,0.00016438,2]
[340442576,1729245103268,-1428.87,0.00016438,2]
[340442577,1729245103278,-500.0,0.00016438,2]
[340442578,1729245103288,-895.03,0.00016438,2]
[340442579,1729245103298,-3993.05,0.00016438,2]
[340442580,1729245103308,-500.0,0.00016438,2]
[340442581,1729245103318,-500.0,0.00016438,2]
[340442582,1729245103333,-500.0,0.00016438,2]
[340442583,1729245103342,-1157.15,0.00016438,2]
[340442584,1729245103351,-151.91259199,0.00016438,2]
[340442585,1729245103361,-500.0,0.00016438,2]
[340442586,1729245103370,-532.6,0.00016438,2]
[340442587,1729245103379,-1870.26,0.00016438,2]
[340442588,1729245103389,-866.7,0.00016438,2]
[340442589,1729245103399,-500.0,0.00016438,2]
[340442590,1729245103408,-730.02,0.00016438,2]
[340442591,1729245103417,-896.36,0.00016438,2]
[340442592,1729245103427,-518.10918066,0.00016438,2]
[340442593,1729245103436,-973.26,0.00016438,2]
[340442594,1729245103446,-654.42,0.00016438,2]
[340442595,1729245103455,-562.62,0.00016438,2]
[340442596,1729245103464,-3473.75,0.00016438,2]
[340442597,1729245103474,-500.0,0.00016438,2]
[340442598,1729245103483,-500.0,0.00016438,2]
[340442599,1729245103493,-500.0,0.00016438,2]
[340442600,1729245103503,-1013.32,0.00016438,2]
[340442601,1729245103513,-884.31,0.00016438,2]
[340442602,1729245103522,-663.59,0.00016438,2]
[340442603,1729245103531,-1044.47,0.00016438,2]
[340442604,1729245103541,-500.0,0.00016438,2]
[340442605,1729245103550,-500.0,0.00016438,2]
[340442606,1729245103560,-1124.46,0.00016438,2]
[340442607,1729245103569,-500.0,0.00016438,2]
[340442608,1729245103580,-500.0,0.00016438,2]
[340442609,1729245103590,-681.61,0.00016438,2]
[340442610,1729245103599,-1167.43,0.00016438,2]
[340442611,1729245103608,-500.0,0.00016438,2]
[340442612,1729245103618,-500.0,0.00016438,2]
[340442613,1729245103627,-1087.29,0.00016438,2]
[340442614,1729245103637,-500.0,0.00016438,2]
[340442615,1729245103647,-765.82,0.00016438,2]
[340442616,1729245103657,-767.62,0.00016438,2]
[340442617,1729245103666,-500.0,0.00016438,2]
[340442618,1729245103676,-165.83407603,0.00016438,2]
[340442619,1729245103686,-1280.97,0.00016438,2]
[340442620,1729245103696,-500.0,0.00016438,2]
[340442621,1729245103705,-500.0,0.00016438,2]
[340442622,1729245103715,-634.94975783,0.00016438,2]
[340442623,1729245103724,-1114.77,0.00016438,2]
[340442624,1729245103734,-1426.78,0.00016438,2]
[340442625,1729245103744,-605.42049561,0.00016438,2]
[340442626,1729245103755,-767.47,0.00016438,2]
[340442627,1729245103764,-500.0,0.00016438,2]
[340442628,1729245103774,-1411.42,0.00016438,2]
[340442629,1729245103783,-545.45,0.00016438,2]
[340442630,1729245103792,-500.0,0.00016438,2]
[340442631,1729245103802,-500.0,0.00016438,2]
[340442632,1729245103812,-788.01,0.00016438,2]
[340442633,1729245103821,-500.0,0.00016438,2]
[340442634,1729245103833,-2395.03,0.00016438,2]
[340442635,1729245103842,-200.3,0.00016438,2]
[340442636,1729245103852,-1150.17,0.00016438,2]
[340442637,1729245103862,-500.0,0.00016438,2]
[340442638,1729245103872,-536.26,0.00016438,2]
[340442639,1729245103882,-500.0,0.00016438,2]
[340442640,1729245103892,-234.73,0.00016438,2]
[340442641,1729245103903,-234.73,0.00016438,2]
[340442642,1729245103912,-234.73,0.00016438,2]
[340442643,1729245103922,-234.73,0.00016438,2]
[340442644,1729245103932,-234.73,0.00016438,2]
[340442645,1729245103941,-234.73,0.00016438,2]
[340442646,1729245103951,-1909.08,0.00016438,2]
[340442647,1729245103961,-2396.15,0.00016438,2]
[340442648,1729245103971,-856.8,0.00016438,2]
[340442649,1729245103981,-592.67134623,0.00016438,2]
[340442650,1729245103991,-505.63296548,0.00016438,2]
[340442651,1729245104000,-500.0,0.00016438,2]
[340442652,1729245104011,-500.0,0.00016438,2]
[340442653,1729245104025,-500.0,0.00016438,2]
[340442654,1729245104034,-492.48830955,0.00016438,2]
[340442655,1729245104044,-550.93035391,0.00016438,2]
[340442656,1729245104056,-837.39,0.00016438,2]
[340442657,1729245104066,-1324.5,0.00016438,2]
[340442658,1729245104076,-539.14810461,0.00016438,2]
[340442659,1729245104086,-500.0,0.00016438,2]
[340442660,1729245104096,-500.0,0.00016438,2]
[340442661,1729245104106,-500.0,0.00016438,2]
[340442662,1729245104116,-1031.32,0.00016438,2]
[340442663,1729245104125,-467.00230675,0.00016438,2]
[340442664,1729245104136,-2844.57,0.00016438,2]
[340442665,1729245104145,-500.0,0.00016438,2]
[340442666,1729245104155,-969.83,0.00016438,2]
[340442667,1729245104166,-603.41,0.00016438,2]
[340442668,1729245104176,-2511.79,0.00016438,2]
[340442669,1729245104185,-2957.21,0.00016438,2]
[340442670,1729245104195,-500.0,0.00016438,2]
[340442671,1729245104204,-825.51,0.00016438,2]
[340442672,1729245104214,-1311.74,0.00016438,2]
[340442673,1729245104224,-500.0,0.00016438,2]
[340442674,1729245104233,-1111.47,0.00016438,2]
[340442675,1729245104242,-500.0,0.00016438,2]
[340442676,1729245104252,-2679.77,0.00016438,2]
[340442677,1729245104262,-500.0,0.00016438,2]
[340442678,1729245104272,-1031.42,0.00016438,2]
[340442679,1729245104282,-12162.79,0.00016438,2]
[340442680,1729245104292,-550.29,0.00016438,2]
[340442681,1729245104302,-930.26,0.00016438,2]
[340442682,1729245104312,-1897.2,0.00016438,2]
[340442683,1729245104322,-500.0,0.00016438,2]
[340442684,1729245104336,-500.0,0.00016438,2]
[340442685,1729245104346,-878.22,0.00016438,2]
[340442686,1729245104357,-957.88,0.00016438,2]
[340442687,1729245104367,-500.0,0.00016438,2]
[340442688,1729245104377,-927.39,0.00016438,2]
[340442689,1729245104387,-937.09,0.00016438,2]
[340442690,1729245104396,-500.0,0.00016438,2]
[340442691,1729245104405,-1899.07,0.00016438,2]
[340442692,1729245104415,-434.3835943,0.00016438,2]
[340442693,1729245104424,-500.0,0.00016438,2]
[340442694,1729245104433,-1019.75,0.00016438,2]
[340442695,1729245104443,-529.39713003,0.00016438,2]
[340442696,1729245104452,-500.0,0.00016438,2]
[340442697,1729245104461,-1189.31,0.00016438,2]
[340442698,1729245104470,-1139.43,0.00016438,2]
[340442699,1729245104480,-2950.09,0.00016438,2]
[340442700,1729245104489,-1270.25,0.00016438,2]
[340442701,1729245104498,-500.0,0.00016438,2]
[340442702,1729245104508,-6008.62,0.00016438,2]
[340442703,1729245104517,-500.0,0.00016438,2]
[340442704,1729245104527,-2190.69,0.00016438,2]
[340442705,1729245104537,-541.93478382,0.00016438,2]
[340442706,1729245104547,-733.35,0.00016438,2]
[340442707,1729245104556,-500.0,0.00016438,2]
[340442708,1729245104566,-500.0,0.00016438,2]
[340442709,1729245104579,-878.59,0.00016438,2]
[340442710,1729245104589,-825.29,0.00016438,2]
[340442711,1729245104599,-1028.34,0.00016438,2]
[340442712,1729245104608,-500.0,0.00016438,2]
[340442713,1729245104618,-1201.91,0.00016438,2]
[340442714,1729245104627,-500.0,0.00016438,2]
[340442715,1729245104638,-1749.48,0.00016438,2]
[340442716,1729245104647,-500.0,0.00016438,2]
[340442717,1729245104657,-966.84,0.00016438,2]
[340442718,1729245104666,-500.0,0.00016438,2]
[340442719,1729245104676,-881.76,0.00016438,2]
[340442720,1729245104686,-1769.45,0.00016438,2]
[340442721,1729245104695,-570.78549345,0.00016438,2]
[340442722,1729245104705,-500.0,0.00016438,2]
[340442723,1729245104714,-2105.24,0.00016438,2]
[340442724,1729245104724,-1860.09,0.00016438,2]
[340442725,1729245104733,-1152.94,0.00016438,2]
[340442726,1729245104743,-1255.91,0.00016438,2]
[340442727,1729245104752,-1691.98,0.00016438,2]
[340442728,1729245104762,-611.85429543,0.00016438,2]
[340442729,1729245104771,-500.0,0.00016438,2]
[340442730,1729245104780,-1098.67,0.00016438,2]
[340442731,1729245104790,-1725.58,0.00016438,2]
[340442732,1729245104800,-543.1353188,0.00016438,2]
[340442733,1729245104809,-500.0,0.00016438,2]
[340442734,1729245104819,-1142.96,0.00016438,2]
[340442735,1729245104831,-500.0,0.00016438,2]
[340442736,1729245104841,-1239.72,0.00016438,2]
[340442737,1729245104851,-500.0,0.00016438,2]
[340442738,1729245104860,-915.71,0.00016438,2]
[340442739,1729245104869,-188.65660778,0.00016438,2]
[340442740,1729245104878,-1461.93,0.00016438,2]
[340442741,1729245104888,-2139.87,0.00016438,2]
[340442742,1729245104897,-1360.3,0.00016438,2]
[340442743,1729245104907,-500.0,0.00016438,2]
[340442744,1729245104916,-500.0,0.00016438,2]
[340442745,1729245104925,-1004.65,0.00016438,2]
[340442746,1729245104935,-814.29,0.00016438,2]
[340442747,1729245104944,-500.0,0.00016438,2]
[340442748,1729245104954,-1014.14,0.00016438,2]
[340442749,1729245104963,-500.0,0.00016438,2]
[340442750,1729245104973,-10684.06,0.00016438,2]
[340442751,1729245104982,-500.0,0.00016438,2]
[340442752,1729245104993,-2848.42,0.00016438,2]
[340442753,1729245105003,-9831.04,0.00016438,2]
[340442754,1729245105013,-500.0,0.00016438,2]
[340442755,1729245105022,-500.0,0.00016438,2]
[340442756,1729245105032,-500.0,0.00016438,2]
[340442757,1729245105041,-500.0,0.00016438,2]
[340442758,1729245105050,-500.0,0.00016438,2]
[340442759,1729245105060,-1297.67,0.00016438,2]
[340442760,1729245105069,-1132.53,0.00016438,2]
[340442761,1729245105081,-1817.3,0.00016438,2]
[340442762,1729245105092,-626.0,0.00016438,2]
[340442763,1729245105250,-500.0,0.00016438,2]
[340442764,1729245105263,-500.0,0.00016438,2]
[340442765,1729245105272,-2100.8,0.00016438,2]
[340442766,1729245105282,-846.3,0.00016438,2]
[340442767,1729245105291,-524.96939523,0.00016438,2]
[340442768,1729245105300,-879.74,0.00016438,2]
[340442769,1729245105310,-1320.86,0.00016438,2]
[340442770,1729245105321,-500.0,0.00016438,2]
[340442771,1729245105332,-500.0,0.00016438,2]
[340442772,1729245105341,-1019.81,0.00016438,2]
[340442773,1729245105350,-500.0,0.00016438,2]
[340442774,1729245105360,-840.9,0.00016438,2]
[340442775,1729245105371,-500.0,0.00016438,2]
[340442776,1729245105381,-500.0,0.00016438,2]
[340442777,1729245105392,-534.68,0.00016438,2]
[340442778,1729245105401,-1568.55,0.00016438,2]
[340442779,1729245105411,-849.66,0.00016438,2]
[340442780,1729245105421,-529.07029893,0.00016438,2]
[340442781,1729245105431,-500.0,0.00016438,2]
[340442782,1729245105440,-500.0,0.00016438,2]
[340442783,1729245105449,-1763.86,0.00016438,2]
[340442784,1729245105459,-636.18,0.00016438,2]
[340442785,1729245105471,-1104.89,0.00016438,2]
[340442786,1729245105481,-71991.77,0.00016438,2]
[340442787,1729245105490,-554.66,0.00016438,2]
[340442788,1729245105500,-500.0,0.00016438,2]
[340442789,1729245105511,-500.0,0.00016438,2]
[340442790,1729245105522,-500.0,0.00016438,2]
[340442791,1729245105530,-500.0,0.00016438,2]
[340442792,1729245105540,-500.0,0.00016438,2]
[340442793,1729245105550,-1069.99,0.00016438,2]
[340442794,1729245105559,-8143.49,0.00016438,2]
[340442795,1729245105569,-507.68,0.00016438,2]
[340442796,1729245105580,-657.05,0.00016438,2]
[340442797,1729245105589,-922.11,0.00016438,2]
[340442798,1729245105599,-626.30803762,0.00016438,2]
[340442799,1729245105608,-1177.72,0.00016438,2]
[340442800,1729245105617,-286.62358229,0.00016438,2]
[340442801,1729245105627,-500.0,0.00016438,2]
[340442802,1729245105636,-558.29,0.00016438,2]
[340442803,1729245105646,-500.0,0.00016438,2]
[340442804,1729245105655,-1098.87,0.00016438,2]
[340442805,1729245105664,-500.0,0.00016438,2]
[340442806,1729245105673,-939.41,0.00016438,2]
[340442807,1729245105683,-1116.8,0.00016438,2]
[340442808,1729245105693,-1215.85,0.00016438,2]
[340442809,1729245105703,-1144.65,0.00016438,2]
[340442810,1729245105712,-500.0,0.00016438,2]
[340442811,1729245105722,-945.11,0.00016438,2]
[340442812,1729245105731,-898.62,0.00016438,2]